[Event "26th OIBM 2023"]
[Site "Gmund am Tegernsee"]
[Date "2023.10.29"]
[Round "2.43"]
[White "Schneider, Jana"]
[Black "Fauth, Dietmar"]
[Result "1-0"]
[ECO "B31"]
[WhiteElo "2285"]
[BlackElo "2048"]
[Annotator "ChessBase"]
[PlyCount "75"]
[EventDate "2023.10.04"]
[EventType "swiss"]
[EventCountry "GER"]
[SourceTitle "playchess.com"]
[Source "ChessBase"]
[SourceQuality "1"]
[TimeControl "40/5400+30:1800+30"]

1. e4 {[%emt 0:00:05]} c5 {[%emt 0:00:06]} 2. Nf3 {[%emt 0:00:06]} Nc6 {[%emt 0:00:04]} 3. Bb5 {[%emt 0:00:07]} Nf6 {[%emt 0:01:05]} 4. Nc3 {[%emt 0:00:09]} g6 {[%emt 0:01:18]} 5. e5 {[%emt 0:00:13]} Ng4 {[%emt 0:01:24]} 6. Bxc6 {[%emt 0:00:14]} dxc6 {[%emt 0:00:27]} 7. O-O {[%emt 0:00:49]} Bg7 {[%emt 0:01:59]} 8. Re1 {[%emt 0:00:17]} O-O {[%emt 0:06:52]} 9. d3 {[%emt 0:02:33]} f6 {[%emt 0:18:58]} 10. exf6 {[%emt 0:11:26]} exf6 {[%emt 0:02:30]} 11. h3 {[%emt 0:08:15]} Nh6 {[%emt 0:01:02]} 12. Ne4 {[%emt 0:05:41]} b6 {[%emt 0:02:02]} 13. a4 {[%emt 0:00:59]} Nf5 {[%emt 0:07:53]} 14. a5 {[%emt 0:03:28]} Ba6 {[%emt 0:00:55]} 15. Bf4 {[%emt 0:07:37]} Nd4 {[%emt 0:04:37]} 16. Nd6 {[%emt 0:04:10]} Qd7 {[%emt 0:09:27]} 17. Nd2 {[%emt 0:12:05]} Ne6 {[%emt 0:04:43]} 18. Bh2 {[%emt 0:02:15]} f5 {[%emt 0:00:30]} 19. axb6 {[%emt 0:03:43]} axb6 {[%emt 0:00:02]} 20. N2c4 {[%emt 0:02:51]} Bxc4 {[%emt 0:08:12]} 21. Rxa8 {[%emt 0:02:37]} Rxa8 {[%emt 0:00:45]} 22. Nxc4 {[%emt 0:00:12]} Ra6 {[%emt 0:09:54]} 23. c3 {[%emt 0:00:58]} b5 {[%emt 0:02:18]} 24. Ne5 {[%emt 0:06:03]} Qd5 {[%emt 0:01:35]} 25. Nf3 {[%emt 0:03:04]} Ra2 {[%emt 0:02:25]} 26. Re2 {[%emt 0:07:13]} h6 {[%emt 0:02:16]} 27. Qe1 {[%emt 0:01:15]} Nf8 {[%emt 0:00:25]} 28. Be5 {[%emt 0:01:14]} Ra7 {[%emt 0:03:02]} 29. Bxg7 {[%emt 0:00:27]} Rxg7 {[%emt 0:00:56]} 30. Re8 {[%emt 0:00:22]} Qd7 {[%emt 0:04:06]} 31. Qe5 {[%emt 0:00:53]} Rf7 {[%emt 0:01:18]} 32. Qb8 {[%emt 0:01:16]} Rf6 {[%emt 0:01:15]} 33. Ne5 {[%emt 0:01:04]} Qd6 {[%emt 0:00:25]} 34. Qc8 {[%emt 0:00:48]} Kg7 {[%emt 0:00:31]} 35. f4 {[%emt 0:01:16]} g5 {[%emt 0:00:35]} 36. Rd8 {[%emt 0:00:52]} Qe6 {[%emt 0:02:03]} 37. Rxf8 {[%emt 0:00:30]} Qxc8 {[%emt 0:00:32]} 38. Rxc8 {[%emt 0:00:05]} 1-0

[Event "26th OIBM 2023"]
[Site "Gmund am Tegernsee"]
[Date "2023.10.29"]
[Round "2.44"]
[White "Scheffner, Jarno"]
[Black "Bracker, Arne"]
[Result "0-1"]
[ECO "C78"]
[WhiteElo "1983"]
[BlackElo "2279"]
[Annotator "ChessBase"]
[PlyCount "94"]
[EventDate "2023.10.04"]
[EventType "swiss"]
[EventCountry "GER"]
[SourceTitle "playchess.com"]
[Source "ChessBase"]
[SourceQuality "1"]
[TimeControl "40/5400+30:1800+30"]

1. e4 {[%emt 0:00:05]} e5 {[%emt 0:00:13]} 2. Nf3 {[%emt 0:00:06]} Nc6 {[%emt 0:00:07]} 3. Bb5 {[%emt 0:00:13]} a6 {[%emt 0:00:12]} 4. Ba4 {[%emt 0:00:07]} Nf6 {[%emt 0:00:10]} 5. d3 {[%emt 0:00:14]} Bc5 {[%emt 0:00:34]} 6. c3 {[%emt 0:00:54]} d6 {[%emt 0:00:43]} 7. O-O {[%emt 0:00:12]} Ba7 {[%emt 0:01:48]} 8. Nbd2 {[%emt 0:02:00]} O-O {[%emt 0:00:21]} 9. h3 {[%emt 0:00:11]} Ne7 {[%emt 0:01:03]} 10. Re1 {[%emt 0:01:33]} Ng6 {[%emt 0:02:41]} 11. Nf1 {[%emt 0:00:42]} c6 {[%emt 0:15:29]} 12. d4 {[%emt 0:05:34]} exd4 {[%emt 0:02:32]} 13. cxd4 {[%emt 0:02:28]} d5 {[%emt 0:01:01]} 14. e5 {[%emt 0:01:56]} Nh5 {[%emt 0:04:59]} 15. Bg5 {[%emt 0:09:51]} f6 {[%emt 0:05:07]} 16. exf6 {[%emt 0:00:06]} Nxf6 {[%emt 0:00:22]} 17. Bc2 {[%emt 0:01:02]} Qc7 {[%emt 0:11:52]} 18. Ng3 {[%emt 0:08:41]} Bd7 {[%emt 0:09:50]} 19. Qd3 {[%emt 0:27:55]} Nf4 {[%emt 0:05:50]} 20. Bxf4 {[%emt 0:00:34]} Qxf4 {[%emt 0:00:12]} 21. Nh5 {[%emt 0:00:10]} Qh6 {[%emt 0:00:27]} 22. Ng3 {[%emt 0:05:54]} Rae8 {[%emt 0:05:44]} 23. Re5 {[%emt 0:03:45]} Bb8 {[%emt 0:03:39]} 24. Rxe8 {[%emt 0:12:27]} Rxe8 {[%emt 0:00:14]} 25. Nf5 {[%emt 0:02:14]} Qh5 {[%emt 0:09:58]} 26. Re1 {[%emt 0:02:37]} Ne4 {[%emt 0:06:34]} 27. Ng3 {[%emt 0:05:36]} Nxg3 {[%emt 0:02:27]} 28. fxg3 {[%emt 0:00:46]} Bxg3 {[%emt 0:01:01]} 29. Rxe8+ {[%emt 0:00:16]} Bxe8 {[%emt 0:00:02]} 30. Qf5 {[%emt 0:02:40]} Qxf5 {[%emt 0:03:25]} 31. Bxf5 {[%emt 0:00:08]} a5 {[%emt 0:01:11]} 32. Kf1 {[%emt 0:01:50]} b6 {[%emt 0:02:46]} 33. Ke2 {[%emt 0:01:08]} h6 {[%emt 0:00:50]} 34. Kd2 {[%emt 0:01:02]} Kf8 {[%emt 0:00:50]} 35. a3 {[%emt 0:01:35]} c5 {[%emt 0:02:11]} 36. Kc3 {[%emt 0:00:41]} Ke7 {[%emt 0:01:01]} 37. b4 {[%emt 0:00:50]} cxb4+ {[%emt 0:00:49]} 38. axb4 {[%emt 0:00:12]} Kd6 {[%emt 0:00:21]} 39. Bd3 {[%emt 0:00:57]} Bh5 {[%emt 0:00:25]} 40. bxa5 {[%emt 0:00:23]} bxa5 {[%emt 0:00:08]} 41. Nd2 {[%emt 0:04:30]} Be1 {[%emt 0:06:53]} 42. Kc2 {[%emt 0:00:15]} Be8 {[%emt 0:07:40]} 43. Nf3 {[%emt 0:01:14]} Ba4+ {[%emt 0:01:33]} 44. Kb2 {[%emt 0:00:30]} Bg3 {[%emt 0:00:51]} 45. Nd2 {[%emt 0:03:10]} Bf2 {[%emt 0:01:31]} 46. Kc3 {[%emt 0:03:01]} Be1 {[%emt 0:00:37]} 47. Bb1 {[%emt 0:00:46]} Bb5 {[%emt 0:01:16]} 0-1

[Event "26th OIBM 2023"]
[Site "Gmund am Tegernsee"]
[Date "2023.10.30"]
[Round "3.1"]
[White "Zawadzka, Jolanta"]
[Black "Mastrovasilis, Dimitrios"]
[Result "1/2-1/2"]
[ECO "B09"]
[WhiteElo "2342"]
[BlackElo "2573"]
[Annotator "TA"]
[PlyCount "29"]
[EventDate "2023.10.04"]
[EventType "swiss"]
[EventCountry "GER"]
[SourceTitle "playchess.com"]
[Source "ChessBase"]
[SourceQuality "1"]
[TimeControl "40/5400+30:1800+30"]

{[%evp 28,29,0,0]} 1. e4 {[%emt 0:00:02]} d6 {[%emt 0:00:07]} 2. d4 {[%emt 0:00:06]} Nf6 {[%emt 0:00:07]} 3. Nc3 {[%emt 0:00:04]} g6 {[%emt 0:00:08]} 4. f4 {[%emt 0:00:14]} Bg7 {[%emt 0:00:08]} 5. Nf3 {[%emt 0:00:08][%cal Bg1f3,Bf3g5,Bg5e6][%mdl 32]} c5 {[%emt 0:00:16]} 6. Bb5+ {[%emt 0:00:13]} Bd7 {[%emt 0:00:08]} 7. e5 {[%emt 0:00:16]} Ng4 {[%emt 0:00:10]} 8. e6 {[%emt 0:00:22] [#]} fxe6 $146 {[%emt 0:01:58]} ({Predecessor:} 8... Bxb5 9. exf7+ Kxf7 10. Ng5+ Ke8 11. Ne6 Bxd4 12. Nxd8 Bf2+ 13. Kd2 Be3+ 14. Ke1 Bf2+ {½-½ Shabalov,A (2585)-Akobian,V (2606) WMSG Rapid 1st 2008 (4)}) 9. Ng5 {[%emt 0:00:19]} Bxb5 {[%emt 0:00:36]} 10. Nxe6 {[%emt 0:00:15]} Bxd4 {[%emt 0:00:11]} 11. Nxd8 {[%emt 0:00:10]} Bf2+ {[%emt 0:00:06]} 12. Kd2 {[%emt 0:00:03]} Be3+ {[%emt 0:00:08]} 13. Ke1 {[%emt 0:00:04]} Bf2+ {[%emt 0:00:06]} 14. Kd2 {[%emt 0:00:08]} Be3+ {[%emt 0:00:05]} 15. Ke1 {[%emt 0:00:07]} 1/2-1/2

[Event "26th OIBM 2023"]
[Site "Gmund am Tegernsee"]
[Date "2023.10.30"]
[Round "3.2"]
[White "Bauer, Christian"]
[Black "Dolzhykova, Kateryna"]
[Result "1-0"]
[ECO "C00"]
[WhiteElo "2552"]
[BlackElo "2336"]
[Annotator "TA"]
[PlyCount "67"]
[EventDate "2023.10.04"]
[EventType "swiss"]
[EventCountry "GER"]
[SourceTitle "playchess.com"]
[Source "ChessBase"]
[SourceQuality "1"]
[TimeControl "40/5400+30:1800+30"]

{[%evp 9,67,-21,7,-6,0,0,0,0,40,18,93,88,84,85,84,33,37,34,84,73,87,45,61,62,62,62,96,88,150,126,104,110,154,177,166,156,170,167,156,170,163,150,248,248,248,248,291,295,341,334,552,510,925,936,6329,6329,1765,1560,29990,5647]} 1. e4 {[%emt 0:00:10]} e6 {[%emt 0:00:08]} 2. d3 {[%emt 0:00:56]} d5 {[%emt 0:00:16]} 3. Qe2 {[%emt 0:00:11]} Nc6 {[%emt 0:01:52]} 4. Nf3 {[%emt 0:00:26]} e5 {[%emt 0:01:24]} 5. c3 {[%emt 0:00:54]} Bg4 {[%emt 0:06:13]} 6. Nbd2 {[%emt 0:04:05] [#] C00: French: Unusual White 2nd moves.} (6. h3 $5 {[%cal Rh3g4]} Be6 7. Ng5 $11) 6... Be7 $146 {[%emt 0:06:08]} ({Predecessor:} 6... Nf6 7. h3 Bh5 8. g4 Bg6 9. Bg2 dxe4 10. Nxe4 Nxe4 11. dxe4 h5 12. g5 Bd6 {1-0 Rudakov,S (1410)-Morozov,B (1764) Voronezh op-B 20th 2016 (2)}) 7. h3 {[%emt 0:01:24]} Be6 {[%emt 0:04:24]} 8. b4 {[%emt 0:10:13] The position is equal.} d4 {[%emt 0:05:53]} 9. b5 {[%emt 0:01:33]} dxc3 {[%emt 0:00:05]} (9... Na5 $11) 10. bxc6 $16 {[%emt 0:00:09] aiming for Nb3.} cxd2+ {[%emt 0:00:04]} 11. Qxd2 {[%emt 0:06:01]} bxc6 {[%emt 0:04:49]} 12. Qc3 {[%emt 0:07:27]} ({Better is} 12. Nxe5 $16 {Black must now prevent d4.} Bc5 13. Bb2 (13. Nxc6 Qd6 $14)) 12... Rb8 $14 {[%emt 0:06:11] ...Bb4 is the strong threat.} 13. Qxc6+ {[%emt 0:03:30]} (13. Qxe5 $2 Bf6 14. Qc5 Bxa1 $19) 13... Kf8 {[%emt 0:04:22]} (13... Bd7 $14 14. Qc2 Bd6) 14. Qc3 {[%emt 0:13:17]} (14. Nxe5 $2 {is the wrong capture.} Qd4 15. f4 (15. Qxc7 $2 Rc8 $19) 15... Bb4+ 16. Ke2 Qxa1 $19) 14... f6 {[%emt 0:12:34]} 15. a3 {[%emt 0:11:19]} Rb3 {[%emt 0:02:14]} 16. Qc2 {[%emt 0:01:50]} c5 {[%emt 0:08:26]} 17. Be2 {[%emt 0:00:29]} Nh6 {[%emt 0:06:09]} 18. O-O {[%emt 0:02:32]} Kf7 {[%emt 0:00:41]} ({Black should play} 18... Qd7) 19. Nd2 {[%emt 0:10:32]} Rb7 {[%emt 0:00:59]} 20. Nc4 {[%emt 0:00:01]} Qc8 {[%emt 0:05:01]} 21. Bxh6 {[%emt 0:03:11]} gxh6 {[%emt 0:00:02]} 22. Bh5+ {[%emt 0:01:23]} Kg7 {[%emt 0:02:27][%cal Oe6h3] [#]} 23. Bg4 {[%emt 0:02:23][%mdl 512]} Bxg4 {[%emt 0:04:39]} 24. hxg4 {[%emt 0:00:35]} Rg8 {[%emt 0:00:02]} 25. Rab1 {[%emt 0:03:34]} Kh8 {[%emt 0:01:02] Black is weak on the light squares} (25... Rc7 $16 26. Ne3 Qe6) 26. Rxb7 $18 Qxb7 {[%emt 0:00:01]} 27. Rb1 {[%emt 0:03:11]} Qd7 {[%emt 0:00:04]} 28. Ne3 {[%emt 0:00:46]} c4 {[%emt 0:00:36]} 29. Qxc4 {[%emt 0:01:05]} (29. dxc4 Bxa3 30. Nf5 Rc8 $18) 29... Bxa3 $2 {[%emt 0:00:30]} (29... Qc8 30. a4 Qxc4 31. dxc4 Bc5) 30. Nf5 {[%emt 0:01:18] Threatens to win with Qa6.} a5 {[%emt 0:02:13]} (30... Re8 $142 31. Qa6 Bf8 32. Qxf6+ Kg8) 31. Qa6 {[%emt 0:02:04]} ({Less strong is} 31. Nxh6 Rf8 32. Nf5 Bb4 $18) 31... Be7 {[%emt 0:04:16]} 32. Rb7 {[%emt 0:02:38][%mdl 64] [#] Skewer} Qc8 {[%emt 0:00:37]} 33. g3 {[%emt 0:00:10]} ({Weaker is} 33. Nxe7 Qc1+ 34. Kh2 Qf4+ 35. Kh1 Qc1+ 36. Kh2 Qf4+ 37. g3 Qxf2+ 38. Kh3 Qf3 $11) 33... Rxg4 {[%emt 0:07:24]} 34. Qa7 {[%emt 0:02:07] Weighted Error Value: White=0.07 (flawless) /Black=0.65} (34. Nxe7 $142 Qf8 35. Nf5 Rg6 36. Qb6 h5 37. Rb8 Qxb8 38. Qxb8+ Rg8 39. Qd6 Rg6 40. Qf8+ Rg8 41. Qxf6+ Rg7 42. Qxg7#) 1-0

[Event "26th OIBM 2023"]
[Site "Gmund am Tegernsee"]
[Date "2023.10.30"]
[Round "3.3"]
[White "Van Foreest, Lucas"]
[Black "Nguyen, Alex Dac-Vuong"]
[Result "1/2-1/2"]
[ECO "D24"]
[WhiteElo "2540"]
[BlackElo "2333"]
[Annotator "TA"]
[PlyCount "76"]
[EventDate "2023.10.04"]
[EventType "swiss"]
[EventCountry "GER"]
[SourceTitle "playchess.com"]
[Source "ChessBase"]
[SourceQuality "1"]
[TimeControl "40/5400+30:1800+30"]

{[%evp 9,76,9,20,-6,0,-6,31,31,31,20,25,34,45,41,24,31,29,29,23,16,22,8,8,0,11,0,0,0,0,0,0,0,0,0,12,15,13,5,18,8,9,10,10,11,9,10,24,7,7,6,10,2,4,3,3,0,6,0,0,0,0,0,0,0,0,0,0,0,0]} 1. d4 {[%emt 0:12:46]} Nf6 {[%emt 0:00:09]} 2. c4 {[%emt 0:00:22]} e6 {[%emt 0:00:04]} 3. Nf3 {[%emt 0:00:13]} d5 {[%emt 0:00:07]} 4. Nc3 {[%emt 0:00:06]} dxc4 {[%emt 0:00:07]} 5. e4 {[%emt 0:00:10]} Bb4 {[%emt 0:00:06]} 6. Bxc4 {[%emt 0:00:06] D24: Queen's Gambit Accepted: 3 Nf3 Nf6 4 Nc3.} Nxe4 {[%emt 0:00:06]} 7. O-O {[%emt 0:00:06]} Nf6 {[%emt 0:00:04]} (7... Bxc3 8. bxc3 Nd7 9. Re1 $14) 8. Qa4+ {[%emt 0:00:05] White is slightly better.} Nc6 {[%emt 0:00:07]} 9. Ne5 {[%emt 0:00:10]} Bd6 {[%emt 0:00:10]} ({Much less strong is} 9... Bd7 10. Nxc6 Bxc3 11. Nxd8 $16) (9... Rb8 {keeps more tension.} 10. d5 exd5 11. Nxd5 Nxd5 12. Nxc6 bxc6 13. Qxc6+ Bd7) 10. Nxc6 {[%emt 0:01:33]} bxc6 {[%emt 0:00:06]} 11. Qxc6+ {[%emt 0:00:05]} Bd7 {[%emt 0:00:09]} 12. Qf3 {[%emt 0:00:07]} h6 {[%emt 0:00:05]} 13. a4 {[%emt 0:09:42]} O-O {[%emt 0:05:54]} 14. b3 {[%emt 0:00:15]} a6 {[%emt 0:00:42] [#]} 15. Bb2 $146 {[%emt 0:05:56]} ({Predecessor:} 15. Rb1 Nh7 16. Rd1 Qh4 17. g3 Qf6 18. Qe2 a5 19. Ne4 Qe7 20. h4 Rfe8 21. Bd3 {½-½ Chronopoulos,A (2037)-Wiaderek,P (2000) FICGS class A 000245 email 2021 (1)}) 15... Rb8 {[%emt 0:02:44]} 16. Rad1 {[%emt 0:02:28]} Bc8 {[%emt 0:01:31]} 17. Ne4 {[%emt 0:34:23]} Nxe4 {[%emt 0:18:19]} 18. Qxe4 {[%emt 0:00:06]} Bb7 {[%emt 0:00:05]} 19. d5 {[%emt 0:00:53]} exd5 {[%emt 0:02:47]} 20. Bxd5 {[%emt 0:01:26]} Bxd5 {[%emt 0:00:20]} 21. Qxd5 {[%emt 0:00:05]} Re8 {[%emt 0:01:55]} 22. g3 {[%emt 0:02:20]} Qg5 {[%emt 0:06:02]} 23. Qf3 {[%emt 0:00:24]} Qe7 {[%emt 0:04:33]} 24. Qc3 {[%emt 0:01:33][%csl Gb2][%cal Rc3g7] [#]} Be5 {[%emt 0:03:50]} 25. Qxe5 {[%emt 0:00:03]} Qxe5 {[%emt 0:00:05]} 26. Bxe5 {[%emt 0:00:02]} Rxe5 $11 {[%emt 0:00:08][%mdl 4096] Endgame KRR-KRR} 27. Rd3 {[%emt 0:00:01]} Rbe8 {[%emt 0:28:55]} 28. Kg2 {[%emt 0:00:24]} Rc5 {[%emt 0:03:50] Prevents Rc1. The position is equal.} 29. Rfd1 {[%emt 0:00:39]} Re2 {[%emt 0:01:13]} 30. Rf3 {[%emt 0:02:05] [#] Strongly threatening Rd8+.} f6 {[%emt 0:02:27]} 31. Rd7 {[%emt 0:01:11]} h5 {[%emt 0:03:31]} 32. Kf1 {[%emt 0:02:30]} Rb2 {[%emt 0:00:12]} 33. Rdd3 {[%emt 0:01:40]} Rc1+ {[%emt 0:02:29]} 34. Kg2 {[%emt 0:00:05]} Kf7 {[%emt 0:01:35]} 35. Rc3 {[%emt 0:06:49]} Rbc2 {[%emt 0:00:13]} 36. Rcd3 {[%emt 0:00:14]} Rb2 {[%emt 0:04:46]} 37. Rc3 {[%emt 0:00:26]} Rbc2 {[%emt 0:00:04]} 38. Rcd3 {[%emt 0:00:04]} Rb2 {[%emt 0:10:00] Weighted Error Value: White=0.04 (flawless) /Black=0.03 (flawless)} 1/2-1/2

[Event "26th OIBM 2023"]
[Site "Gmund am Tegernsee"]
[Date "2023.10.30"]
[Round "3.4"]
[White "Chassard, Cedric"]
[Black "Stocek, Jiri"]
[Result "0-1"]
[ECO "C70"]
[WhiteElo "2326"]
[BlackElo "2535"]
[Annotator "RC"]
[PlyCount "46"]
[EventDate "2023.10.04"]
[EventType "swiss"]
[EventCountry "GER"]
[SourceTitle "playchess.com"]
[Source "ChessBase"]
[SourceQuality "1"]
[TimeControl "40/5400+30:1800+30"]

1. e4 {[%emt 0:00:03]} e5 {[%emt 0:00:48]} 2. Nf3 {[%emt 0:00:06]} Nc6 {[%emt 0:00:08]} 3. Bb5 {[%emt 0:00:02]} a6 {[%emt 0:00:33]} 4. Ba4 {[%emt 0:00:06]} g6 {[%emt 0:00:36]} 5. c3 {[%emt 0:08:06]} Bg7 {[%emt 0:03:47]} 6. O-O {[%emt 0:00:08]} b5 {[%emt 0:00:39]} 7. Bb3 {[%emt 0:01:38]} d6 {[%emt 0:01:20]} 8. d4 {[%emt 0:03:41]} exd4 {[%emt 0:02:20]} 9. Ng5 {[%emt 0:03:36]} Nh6 {[%emt 0:09:38]} 10. Bd5 {[%emt 0:02:36]} Bd7 {[%emt 0:09:33]} 11. cxd4 {[%emt 0:03:22]} Rc8 {[%emt 0:02:13]} 12. Be3 {[%emt 0:06:39]} Ne7 {[%emt 0:02:55]} 13. Bb3 {[%emt 0:03:31]} c5 {[%emt 0:01:35]} 14. h3 {[%emt 0:02:47]} O-O {[%emt 0:04:10]} 15. Nc3 {[%emt 0:00:53]} c4 {[%emt 0:00:51]} 16. Bc2 {[%emt 0:00:09]} b4 {[%emt 0:02:54]} 17. Na4 {[%emt 0:08:29]} d5 {[%emt 0:10:38]} 18. Nc5 {[%emt 0:03:47]} Bb5 {[%emt 0:05:45]} 19. Qc1 {[%emt 0:12:56]} dxe4 {[%emt 0:03:02]} 20. Nge6 {[%emt 0:04:22]} fxe6 {[%emt 0:00:24]} 21. Bxh6 {[%emt 0:00:11]} Bxh6 {[%emt 0:00:43]} 22. Qxh6 {[%emt 0:00:03]} Nf5 {[%emt 0:00:23]} 23. Qd2 {[%emt 0:11:05]} Rxc5 {[%emt 0:02:00]} 0-1

[Event "26th OIBM 2023"]
[Site "Gmund am Tegernsee"]
[Date "2023.10.30"]
[Round "3.5"]
[White "Kulon, Klaudia"]
[Black "Vetoshko, Volodymyr"]
[Result "1/2-1/2"]
[ECO "B82"]
[WhiteElo "2319"]
[BlackElo "2499"]
[Annotator "RC"]
[PlyCount "81"]
[EventDate "2023.10.04"]
[EventType "swiss"]
[EventCountry "GER"]
[SourceTitle "playchess.com"]
[Source "ChessBase"]
[SourceQuality "1"]
[TimeControl "40/5400+30:1800+30"]

1. e4 {[%emt 0:00:03]} c5 {[%emt 0:00:30]} 2. Nf3 {[%emt 0:00:05]} e6 {[%emt 0:00:12]} 3. d4 {[%emt 0:00:07]} cxd4 {[%emt 0:00:06]} 4. Nxd4 {[%emt 0:00:03]} Nc6 {[%emt 0:00:27]} 5. Nc3 {[%emt 0:00:20]} a6 {[%emt 0:00:27]} 6. Be3 {[%emt 0:00:34]} Nf6 {[%emt 0:00:45]} 7. a3 {[%emt 0:01:19]} d6 {[%emt 0:06:47]} 8. f4 {[%emt 0:02:09]} Be7 {[%emt 0:07:30]} 9. Qf3 {[%emt 0:02:20]} Qc7 {[%emt 0:06:32]} 10. O-O-O {[%emt 0:01:14]} O-O {[%emt 0:01:41]} 11. Rg1 {[%emt 0:01:11]} Nxd4 {[%emt 0:14:50]} 12. Rxd4 {[%emt 0:00:17]} b5 {[%emt 0:01:51]} 13. g4 {[%emt 0:02:35]} d5 {[%emt 0:04:45]} 14. e5 {[%emt 0:04:27]} Ne4 {[%emt 0:04:44]} 15. Nxe4 {[%emt 0:01:04]} dxe4 {[%emt 0:00:07]} 16. Qxe4 {[%emt 0:00:05]} Bb7 {[%emt 0:02:08]} 17. Qd3 {[%emt 0:00:05]} Bc5 {[%emt 0:06:23]} 18. Rd6 {[%emt 0:00:39]} Bxd6 {[%emt 0:11:38]} 19. exd6 {[%emt 0:00:06]} Qd7 {[%emt 0:00:13]} 20. Bc5 {[%emt 0:04:44]} Bd5 {[%emt 0:01:59]} 21. Qd4 {[%emt 0:05:59]} Qc6 {[%emt 0:05:55]} 22. Bd3 {[%emt 0:06:40]} Rfd8 {[%emt 0:02:04]} 23. Rg3 {[%emt 0:06:06]} Bc4 {[%emt 0:09:45]} 24. Qe4 {[%emt 0:08:41]} Qxe4 {[%emt 0:01:10]} 25. Bxe4 {[%emt 0:00:02]} Rac8 {[%emt 0:01:24]} 26. b4 {[%emt 0:00:46]} Rd7 {[%emt 0:00:20]} 27. Bd3 {[%emt 0:05:50]} Bxd3 {[%emt 0:01:59]} 28. Rxd3 {[%emt 0:00:02]} f6 {[%emt 0:00:43]} 29. Kb2 {[%emt 0:01:04]} Kf7 {[%emt 0:00:16]} 30. Kb3 {[%emt 0:01:03]} h5 {[%emt 0:03:18]} 31. gxh5 {[%emt 0:02:02]} Rh8 {[%emt 0:00:58]} 32. Rh3 {[%emt 0:00:54]} Ke8 {[%emt 0:00:49]} 33. a4 {[%emt 0:03:33]} g6 {[%emt 0:01:23]} 34. axb5 {[%emt 0:02:56]} axb5 {[%emt 0:00:03]} 35. h6 {[%emt 0:00:04]} Rdh7 {[%emt 0:00:37]} 36. Kb2 {[%emt 0:01:43]} Kd7 {[%emt 0:00:40]} 37. Ra3 {[%emt 0:03:43]} Kc6 {[%emt 0:00:42]} 38. Re3 {[%emt 0:10:42]} Kd7 {[%emt 0:01:35]} 39. Ra3 {[%emt 0:08:46]} Kc6 {[%emt 0:00:07]} 40. Re3 {[%emt 0:00:05]} Re8 {[%emt 0:02:16]} 41. Ra3 {[%emt 0:31:06]} 1/2-1/2

[Event "26th OIBM 2023"]
[Site "Gmund am Tegernsee"]
[Date "2023.10.30"]
[Round "3.6"]
[White "Gallego Alcaraz, Andres Felipe"]
[Black "Unuk, Laura"]
[Result "1-0"]
[ECO "C71"]
[WhiteElo "2495"]
[BlackElo "2313"]
[Annotator "RC"]
[PlyCount "98"]
[EventDate "2023.10.04"]
[EventType "swiss"]
[EventCountry "GER"]
[SourceTitle "playchess.com"]
[Source "ChessBase"]
[SourceQuality "1"]
[TimeControl "40/5400+30:1800+30"]

1. e4 {[%emt 0:00:03]} e5 {[%emt 0:05:00]} 2. Nf3 {[%emt 0:00:07]} Nc6 {[%emt 0:00:06]} 3. Bb5 {[%emt 0:00:14]} a6 {[%emt 0:00:25]} 4. Ba4 {[%emt 0:00:09]} d6 {[%emt 0:01:29]} 5. c4 {[%emt 0:01:14]} Bg4 {[%emt 0:02:31]} 6. d3 {[%emt 0:04:59]} Nf6 {[%emt 0:03:28]} 7. Be3 {[%emt 0:00:56]} Nd7 {[%emt 0:04:05]} 8. Nbd2 {[%emt 0:02:20]} Nc5 {[%emt 0:21:39]} 9. Bxc5 {[%emt 0:19:51]} dxc5 {[%emt 0:00:27]} 10. Bxc6+ {[%emt 0:01:07]} bxc6 {[%emt 0:00:06]} 11. Qa4 {[%emt 0:00:42]} Bd6 {[%emt 0:04:37]} 12. h3 {[%emt 0:12:49]} Be6 {[%emt 0:04:10]} 13. b4 {[%emt 0:09:32]} O-O {[%emt 0:08:37]} 14. bxc5 {[%emt 0:05:35]} Bxc5 {[%emt 0:00:06]} 15. Qxc6 {[%emt 0:03:58]} Bb4 {[%emt 0:04:45]} 16. Ke2 {[%emt 0:01:52]} Qe7 {[%emt 0:08:49]} 17. Rab1 {[%emt 0:02:13]} a5 {[%emt 0:00:28]} 18. Rhd1 {[%emt 0:04:23]} Bd7 {[%emt 0:12:45]} 19. Qd5 {[%emt 0:04:11]} Rfe8 {[%emt 0:00:30]} 20. Nxe5 {[%emt 0:04:45]} Ba4 {[%emt 0:01:49]} 21. Ndf3 {[%emt 0:00:40]} Ra6 {[%emt 0:10:46]} 22. Ng4 {[%emt 0:03:58]} Bxd1+ {[%emt 0:01:14]} 23. Rxd1 {[%emt 0:00:06]} Rb6 {[%emt 0:01:30]} 24. Kf1 {[%emt 0:08:18]} Rd6 {[%emt 0:00:53]} 25. Qb5 {[%emt 0:03:55]} Red8 {[%emt 0:00:35]} 26. c5 {[%emt 0:01:43]} Re6 {[%emt 0:00:21]} 27. Rc1 {[%emt 0:00:17]} Qd7 {[%emt 0:02:11]} 28. Qxd7 {[%emt 0:02:29]} Rxd7 {[%emt 0:00:02]} 29. Nge5 {[%emt 0:00:43]} Rd8 {[%emt 0:00:45]} 30. d4 {[%emt 0:01:26]} Ba3 {[%emt 0:00:35]} 31. Rc2 {[%emt 0:00:16]} Rxd4 {[%emt 0:00:35]} 32. Nxd4 {[%emt 0:00:18]} Rxe5 {[%emt 0:00:07]} 33. Nb5 {[%emt 0:00:44]} Bb4 {[%emt 0:00:37]} 34. Nxc7 {[%emt 0:00:53]} Rxc5 {[%emt 0:00:53]} 35. Rxc5 {[%emt 0:00:18]} Bxc5 {[%emt 0:00:01]} 36. f4 {[%emt 0:00:26]} Kf8 {[%emt 0:00:38]} 37. Ke2 {[%emt 0:00:04]} Ke7 {[%emt 0:00:13]} 38. Kd3 {[%emt 0:00:07]} Kd6 {[%emt 0:00:59]} 39. Ne8+ {[%emt 0:00:21]} Ke7 {[%emt 0:00:40]} 40. Nxg7 {[%emt 0:00:07]} Bf2 {[%emt 0:00:30]} 41. e5 {[%emt 0:30:39]} Kd7 {[%emt 0:30:30]} 42. Kc4 {[%emt 0:00:41]} Kc6 {[%emt 0:00:00]} 43. a4 {[%emt 0:00:00]} Bg3 {[%emt 0:00:00]} 44. Nh5 {[%emt 0:00:00]} Bh2 {[%emt 0:00:00]} 45. g3 {[%emt 0:00:00]} Bg1 {[%emt 0:00:00]} 46. Nf6 {[%emt 0:00:00]} Bh2 {[%emt 0:00:00]} 47. Ne4 {[%emt 0:00:00]} h5 {[%emt 0:00:00]} 48. h4 {[%emt 0:00:00]} Kd7 {[%emt 0:00:00]} 49. Kd5 {[%emt 0:00:00]} Ke7 {[%emt 0:00:00]} 1-0